Cogmind - Beta 10.1 @@@ ROGUE MODE // 2020.09.29 @ 16:06:29 Player: HOTSOUP Result: Destroyed by Y-45 Defender with Heavy Assault Rifle Performance ------------- Evolutions (1) 500 Regions Visited (2) 400 Robots Destroyed (2) 10 Value Destroyed (50) 50 Prototype IDs (0) 0 Alien Tech Used (0) 0 Bonus (0) 0 TOTAL SCORE: 960 Bonus ------- None Cogmind --------- Core Integrity 0/400 Matter 300/300 Energy 100/100 System Corruption 1% Temperature Cool (9) Movement Core (50) Location -9/Materials Parts ------- > --- POWER (1) -------- (None) > --- PROPULSION (2) --- (None) > --- UTILITY (4) ------ (None) > --- WEAPON (2) ------- (None) > --- INVENTORY (4) ---- Weight Redist. System Peak State ------------ > --- POWER ------------ (None) > --- PROPULSION ------- (None) > --- UTILITY ---------- (None) > --- WEAPON ----------- Light EM Pulse Cannon Beam Cannon > --- INVENTORY -------- Light Ion Engine Weight Redist. System [Rating: 3] Favorites ----------- Power Light Ion Engine Engine Light Ion Engine Propulsion None Utility None Weapon Beam Cannon Energy Gun Small Laser Energy Cannon Beam Cannon Build | -11 -10 -9 ------- Run | Scr Mat Mat Slots Evolved 2 | . . 2 Power . | . . . Propulsion . | . . . Utility 2 | . . 2 Weapon . | . . . Parts Attached 5 | 1 1 3 Power 1 | . . 1 Engine 1 | . . 1 Core . | . . . Reactor . | . . . Propulsion . | . . . Treads . | . . . Leg . | . . . Wheel . | . . . Hover . | . . . Flight . | . . . Utility . | . . . Device . | . . . Storage . | . . . Processor . | . . . Hackware . | . . . Protection . | . . . Artifact . | . . . Weapon 4 | 1 1 2 Energy Gun 1 | 1 . . Energy Cannon 3 | . 1 2 Ballistic Gun . | . . . Ballistic Cannon . | . . . Launcher . | . . . Special Weapon . | . . . Impact Weapon . | . . . Slashing Weapon . | . . . Piercing Weapon . | . . . Special Melee Weapon . | . . . Unidentified Prototypes . | . . . Parts Lost 3 | . . 3 Power 1 | . . 1 Propulsion . | . . . Utility . | . . . Weapon 2 | . . 2 Highest Loss Streak 3 | . . 3 Average Slot Usage (%) 10 | . 14 7 Energy Gun 3 | . 8 . Energy Cannon 6 | . 5 6 Naked Turns 45 | . 3 42 Heaviest Build 4 | 1 3 4 Greatest Support 3 | 3 3 3 Greatest Overweight (x) 1 | . . 1 Average Overweight (x) . | . . . Largest Inventory Capacity 4 | 4 4 4 Average Capacity 4 | 4 4 4 Most Carried 3 | . 2 3 Average Carried 1 | . 1 1 Final Capacity 4 | 4 4 4 Final Carried 2 | . 2 1 Class Distribution -------------------- 100% | Mutant Dominant Class ---------------- Mutant | -10/Materials Mutant | -9/Materials Resources | -11 -10 -9 ----------- Run | Scr Mat Mat Matter Collected 235 | 186 20 29 Remotely . | . . . Salvage Created 49 | . 20 29 Parts 5 | . 2 3 Haulers Intercepted . | . . . Recyclers Shooed . | . . . Parts Field Recycled . | . . . Retrieved Matter . | . . . Parts Self-Destructed . | . . . Prevented . | . . . Kills | -11 -10 -9 ------- Run | Scr Mat Mat Combat Hostiles Destroyed 1 | . . 1 AOE 1 | . . 1 Classes Destroyed 2 | . 1 1 Watcher 1 | . 1 . Grunt 1 | . . 1 Best Kill Streak 1 | . 1 1 Combat Bots Only 1 | . . 1 Max Kills in Single Turn 1 | . 1 1 Gunslinging . | . . . Exploded 1 | . . 1 Melee . | . . . Uniques/NPCs Destroyed . | . . . Combat | -11 -10 -9 -------- Run | Scr Mat Mat Damage Taken 609 | . 64 545 Core 441 | . 32 409 Absorbed by Shields . | . . . Core Remaining (%) 93 | 100 87 . Volleys Fired 11 | . 4 7 Largest 1 | . 1 1 Hottest 60 | . 60 60 Shots Fired 11 | . 4 7 Gun . | . . . Cannon 11 | . 4 7 Launcher . | . . . Special . | . . . Kinetic . | . . . Thermal 6 | . 4 2 Explosive . | . . . Electromagnetic 5 | . . 5 Robot Hit Streak 3 | . 1 3 Robot Miss Streak 3 | . 1 3 Penetration Max . | . . . Secondary Targets . | . . . Shots Hit Robots 5 | . 2 3 Core Hits 4 | . 1 3 Critical Hits . | . . . Critical Kills . | . . . Critical Parts Destroyed . | . . . Melee Attacks . | . . . Impact . | . . . Slashing . | . . . Piercing . | . . . Sneak Attacks . | . . . Combat Hostiles . | . . . Follow-up Attacks . | . . . Damage Inflicted 152 | . 35 117 Guns . | . . . Cannons 93 | . 35 58 Explosions 45 | . . 45 Melee . | . . . Ramming 14 | . . 14 Kinetic . | . . . Thermal 115 | . 35 80 Explosive . | . . . Electromagnetic 23 | . . 23 Impact . | . . . Slashing . | . . . Piercing . | . . . Highest Corruption 1 | . . 1 Average Corruption 1 | . . 1 Corruption Purged . | . . . Overload Shots . | . . . Overflow Damage . | . . . Projectiles . | . . . Explosions . | . . . Melee . | . . . Knockbacks . | . . . Impact . | . . . Kinetic . | . . . Secondary . | . . . Self-Inflicted Damage 6 | . . 6 Shots . | . . . Rammed 6 | . . 6 Targets Rammed 6 | . . 6 Kicked . | . . . Crushed . | . . . Highest Temperature 43 | . 30 43 Average Temperature 16 | . 13 20 Received Heat Transfer 153 | . . 153 Siege Activations . | . . . Robots Corrupted . | . . . Combat Hostiles . | . . . Parts Fried . | . . . Impact Corruptions . | . . . Robots Melted . | . . . Combat Hostiles . | . . . Parts Melted . | . . . Heat Transferred 148 | . 74 74 Parts Sabotaged . | . . . Parts Stolen . | . . . Parts Stripped . | . . . Power Chain Reactions 1 | . . 1 Missiles Intercepted . | . . . Alert | -11 -10 -9 ------- Run | Scr Mat Mat Peak Influence 60 | . 25 60 Initial 10 | . . 10 Average 20 | . 11 28 Maximum Alert Level . | . . . Low Security (%) 100 | 100 100 100 Level 1 . | . . . Level 2 . | . . . Level 3 . | . . . Level 4 . | . . . Level 5 . | . . . High Security . | . . . Max Security . | . . . Squads Dispatched 1 | . . 1 Investigation 1 | . . 1 Extermination . | . . . Reinforcement . | . . . Assault . | . . . Garrison . | . . . Intercept . | . . . Construction Impeded . | . . . Haulers Reinforced . | . . . Stealth | -11 -10 -9 --------- Run | Scr Mat Mat Distress Signals 1 | . . 1 Communications Jammed . | . . . Distress Signals . | . . . Times Spotted 12 | . 5 7 Peak Tracking Total 5 | . 5 5 Tactical Retreats 2 | . . 2 Traps | -11 -10 -9 ------- Run | Scr Mat Mat Traps Triggered . | . . . Indirectly . | . . . Trap Hack Attempts . | . . . Triggered . | . . . Disarmed . | . . . Reprogrammed . | . . . Reused . | . . . Traps Extracted . | . . . Installed . | . . . Triggered . | . . . Machines | -11 -10 -9 ---------- Run | Scr Mat Mat Machines Disabled . | . . . Max in Single Turn . | . . . Machines Sabotaged . | . . . Garrisons Compromised . | . . . Overloaded Fab Kills . | . . . Fab Network Shutdowns . | . . . Hacking | -11 -10 -9 --------- Run | Scr Mat Mat Machines Accessed 3 | . 2 1 Terminals 3 | . 2 1 Fabricators . | . . . Repair Stations . | . . . Recycling Units . | . . . Scanalyzers . | . . . Garrison Access . | . . . Total Hacks 9 | . 4 5 Successful 7 | . 4 3 Failed 2 | . . 2 Catastrophic . | . . . Database Lockouts . | . . . Manual 9 | . 4 5 Terminals 9 | . 4 5 Fabricators . | . . . Repair Stations . | . . . Recycling Units . | . . . Scanalyzers . | . . . Garrison Access . | . . . Terminal Hacks . | . . . Fabricator Hacks . | . . . Repair Station Hacks . | . . . Recycling Unit Hacks . | . . . Scanalyzer . | . . . Garrison Access Hacks . | . . . Unauthorized Hacks 7 | . 4 3 Terminals 7 | . 4 3 Track 3 | . 2 1 Botnet 3 | . 2 1 Operators 1 | . . 1 Fabricators . | . . . Repair Stations . | . . . Recycling Units . | . . . Scanalyzers . | . . . Garrison Access . | . . . Data Cores Recovered . | . . . Used . | . . . Hacking Detections 2 | . 1 1 Full Trace Events 1 | . . 1 Feedback Events . | . . . Feedback Blocked . | . . . Robot Schematics Acquired . | . . . Robots Built . | . . . Matter . | . . . Time . | . . . Total Robot Build Rating . | . . . Part Schematics Acquired . | . . . Parts Built . | . . . Matter . | . . . Time . | . . . Total Part Build Rating . | . . . Parts Repaired . | . . . Time . | . . . Parts Recycled . | . . . Recycled Matter . | . . . Retrieved Matter . | . . . Retrieved Components . | . . . Parts Scanalyzed . | . . . Part Schematics Acquired . | . . . Parts Damaged . | . . . Bothacking | -11 -10 -9 ------------ Run | Scr Mat Mat Used RIF Installer . | . . . Robots Hacked . | . . . Non-combat . | . . . Combat . | . . . Robot Hacks Applied . | . . . Relay Couplers Released . | . . . Robots Rewired . | . . . Allies Hacked . | . . . Hacks Repelled . | . . . Allies | -11 -10 -9 -------- Run | Scr Mat Mat Total Allies . | . . . Largest Group . | . . . Highest-Rated Group . | . . . Highest-Rated Ally . | . . . Total Orders . | . . . Ally Attacks . | . . . Total Damage . | . . . Kills . | . . . Allies Corrupted . | . . . Allies Melted . | . . . Intel | -11 -10 -9 ------- Run | Scr Mat Mat Robot Analysis Total . | . . . Derelict Logs Recovered . | . . . Drone Launches . | . . . Drone Recoveries . | . . . Exploration | -11 -10 -9 ------------- Run | Scr Mat Mat Turns Passed 245 | 13 102 130 Spaces Moved 338 | 24 171 143 Core 338 | 24 171 143 Treads . | . . . Legs . | . . . Wheels . | . . . Hover . | . . . Flight . | . . . Fastest Speed 50 | 50 50 50 Average Speed 54 | 50 50 60 Slowest Speed 100 | 50 50 100 Overloaded Moves . | . . . Propulsion Burnouts . | . . . Robots Hopped . | . . . Cave-ins Triggered . | . . . Exploration Rate (%) 18 | 3 40 13 Regions Visited 2 Branch Regions . Pre-discovered Areas . | . . . Known Exits Taken . | . . . Unknown Exits Taken 2 | 1 1 . Scrap Searched . | . . . Spaces Dug . | . . . Terrain Destroyed 3 | . . 3 Melee . | . . . Projectile . | . . . AOE 3 | . . 3 Terrain Rammed . | . . . Walls Destroyed . | . . . Machines Disabled . | . . . Actions | -11 -10 -9 --------- Run | Scr Mat Mat Total 386 | 24 182 180 Wait 24 | . 4 20 Move 336 | 23 170 143 Hop . | . . . Pick Up 2 | . 2 . Fast Attach 3 | 1 1 1 Attach 2 | . . 2 Detach 1 | . . 1 Swap . | . . . Drop 1 | . 1 . Fire 11 | . 4 7 Melee . | . . . Ram 6 | . . 6 Kick . | . . . Crush . | . . . Escape Stasis . | . . . Rewire . | . . . Trap . | . . . Miscellaneous . | . . . Route ------- -11/Scrapyard -10/Materials -9/Materials History --------- Turn | Location | Event 5 | -11/Scrapyard | Discovered new exit (range 16) 14 | -11/Scrapyard | Entered Materials 68 | -10/Materials | Discovered new exit (range 10) 116 | -10/Materials | Entered another Materials area 116 | -9/Materials | Evolved 2 slots: Utility x2 215 | -9/Materials | Core integrity fell below 50% 235 | -9/Materials | Lost 3 parts (1p2w) 236 | -9/Materials | Core integrity fell below 20% 246 | -9/Materials | Destroyed by Y-45 Defender with Heavy Assault Rifle Last Messages --------------- 00198_ Beam Cannon destroyed. 00201_ U-05 Engineer lays Concrete. 00204_ Lgt. Ion Engine destroyed. 00205_ U-05 Engineer lays Concrete. 00212_ K-01 Serf collects debris. 00213_ U-05 Engineer lays Concrete. 00217_ K-01 Serf collects debris. 00218_ U-05 Engineer lays Concrete. 00218_ U-05 Engineer builds a Wall. 00219_ U-05 Engineer lays Concrete. 00220_ Acquired 29 matter. 00220_ U-05 Engineer lays Concrete. 00222_ U-05 Engineer builds a Wall. 00227_ K-01 Serf collects debris. 00229_ Slammed into W-16 Scout. 00234_ Destabilizing: Core damaged (-20). 00235_ Slammed into W-16 Scout. 00235_ Destabilizing: System corrupted (+1). 00236_ Slammed into W-16 Scout. 00244_ K-01 Serf collects debris. Map ----- +----------------------------------------------------+ | # #???# ! ???????????????????????? | | # #???# ???????????????????????? | | # #???### ######### ?????????????????????????? | | #?????#^^ #??????????????????????????????????? | | #?????# #??????????????????????????????????? | | #?????# #??????????????????????????????????? | | +####?????# #??????????????????????????????????? | | ???????# #??????????????????????????????????? | | ?????# #??????????????????????????????????? | | #????# #??????????????????????????????????? | | #????# #???????? ???????????????????????? | | """" #????# #???????# #??????????????????????? | | """" #????# #???????# #??????????????????????? | | """" #????# #???????# #??????????????????????? | | #????# #???????# #??????????????????????? | | ##???#????# #???????# #??????????????????????? | | ???#####??# #???????# #??????????????????????? | | ???? ??# ######### #??????????????????????? | | ???# """ ?# # ## #??????????????????????? | | ???# """ ?# !# ##k #??????????????????????? | | ???# """ # = # """ ## #??????????????????????? | | ???# # =" """ ## #????#+###?????????????? | | ???# / + """ ## #### ###+??????????? | | ???######## # ## ! ??????????? | | ####### ######### T ????????? | | u g%%Y %%%@ w ????????? | | ################ #?????????????? | | #??????????????????????????????????? | | ###########??????????????????????????????????? | | ???????????????????????????????????????????????? | | ?????????????????????????????????????????????????? | | ?????????????????????????????????????????????????? | | ?????????????????????????????????????????????????? | | ?????????????????????????????????????????????????? | | ?????????????????????????????????????????????????? | | ?????????????????????????????????????????????????? | | ?????????????????????????????????????????????????? | | ?????????????????????????????????????????????????? | | ?????????????????????????????????????????????????? | | ?????????????????????????????????????????????????? | | ?????????????????????????????????????????????????? | | ?????????????????????????????????????????????????? | | ?????????????????????????????????????????????????? | | ?????????????????????????????????????????????????? | | ?????????????????????????????????????????????????? | | ?????????????????????????????????????????????????? | | ?????????????????????????????????????????????????? | | ?????????????????????????????????????????????????? | | ?????????????????????????????????????????????????? | | ?????????????????????????????????????????????????? | +----------------------------------------------------+ Best States ------------- Heat Dissipation 28 Energy Generation 10 Energy Capacity 125 Matter Stores 300 Matter Capacity 300 Sight Range 16 Terrain Scan Density 10 Evasion (%) 50 Item Schematics ----------------- None Robot Schematics ------------------ None Fabricated ------------ Nothing Alien Tech Used ----------------- None Achievements -------------- None Challenges ------------ None Game ------ Seed ResetFlyingChip Manual? 0 Play Time 00:07:36 Cumulative 75.5 hours Start 2020.09.29 @ 15:59:39 End 2020.09.29 @ 16:06:29 Sessions 1 Manual Loads 0 Difficulty Rogue Special Mode None Game No. 102 Rogue 78 Adventurer 22 Explorer 2 Win Type - Total 1 Types 1/0/0/0/0/0/0/0/0 Lore% 43 Gallery% 47 Achievement% 39 Wizard Run 0 Options --------- ASCII 0 Keyboard 0 Movement Numpad Keybinds 0 Fullscreen 1 Font 14/SmallcapsGlow Map View 84x54 Tactical HUD 1 Map Filters NONE Filters NONE Steam 1 RUN: 98988da7-1a0f-4800-970a-d81ec499d6fd